bitfinex/quotes_ETHUSD_20250807
["timestamp","ask_amount","ask_price","bid_price","bid_amount"]
[1754589075263,0.9369,3827.1,3826.7,0.001]
[1754589075570,1.0673,3827.1,3826.8,2.61314711]
[1754589075917,0.1304,3827.1,3826.8,2.61314711]
[1754589076119,0.1304,3827.1,3826.7,0.001]
[1754589076365,0.1304,3827.1,3826.7,2.6141831]
[1754589077019,0.1304,3827.1,3826.7,0.001]
[1754589077214,1.0673,3827.1,3826.7,2.61421649]
[1754589077983,0.96956266,3827.0,3826.7,0.001]
[1754589078293,0.1304,3826.8,3826.7,0.001]
[1754589079758,0.1304,3826.8,3826.7,2.61421765]
[1754589080086,4.1314,3826.8,3826.7,2.61421765]
[1754589080452,4.1314,3826.8,3826.7,0.001]
[1754589081194,4.1314,3826.8,3826.7,2.61421765]
[1754589081398,0.002,3827.1,3826.7,2.61421765]
[1754589081564,4.1314,3827.0,3826.7,2.61421765]
[1754589082683,0.9369,3826.9,3826.7,0.001]
[1754589083205,4.1314,3827.0,3826.7,2.6142158]
[1754589084089,0.56531297,3827.1,3826.8,3.06884936]
[1754589084090,4.001,3826.9,3826.8,3.06884936]
[1754589084666,4.001,3826.9,3826.8,2.61314936]
[1754589085266,4.9379,3826.9,3826.7,0.001]
[1754589085510,0.9369,3826.8,3826.7,0.001]
[1754589085865,0.41334,3826.9,3826.8,2.61314936]
[1754589086066,4.001,3826.9,3826.7,0.001]
[1754589086265,4.001,3826.9,3826.7,2.61418935]
[1754589086497,4.001,3826.9,3826.8,2.61314936]
[1754589086696,4.001,3826.9,3826.7,2.61420334]
[1754589086899,4.001,3826.9,3826.7,0.001]
[1754589087277,0.9369,3826.8,3826.7,0.001]
[1754589087513,0.4562,3826.8,3826.7,0.001]
[1754589087680,4.001,3826.9,3826.7,2.6142123]
[1754589088076,4.001,3826.9,3826.7,0.001]
[1754589088283,0.9005,3826.8,3826.7,0.001]
[1754589089006,0.1304,3827.0,3826.8,2.6131101]
[1754589089172,4.001,3826.9,3826.8,2.6131101]
[1754589092573,0.002,3827.1,3827.0,2.6130128]
[1754589092770,4.24759614,3827.1,3827.0,2.6130128]
[1754589093412,0.24659614,3827.1,3827.0,2.6130128]
[1754589093575,0.002,3827.1,3827.0,4.52836219]
[1754589094410,1e-08,3827.1,3827.0,7.52836219]
[1754589094613,1e-08,3827.1,3827.0,28.88218422]
[1754589094779,1e-08,3827.1,3827.0,15.79936219]
[1754589096449,1e-08,3827.1,3827.0,15.55546219]
[1754589097342,1e-08,3827.1,3827.0,15.79936219]
[1754589097914,1e-08,3827.1,3827.0,15.55546219]
[1754589098545,1e-08,3827.1,3827.0,11.29906067]
[1754589098751,1e-08,3827.1,3827.0,11.75436067]
[1754589099246,1e-08,3827.1,3827.0,11.55446219]
[1754589099450,1e-08,3827.1,3827.0,11.09916219]
[1754589099743,1e-08,3827.1,3827.0,11.55446219]
[1754589100681,1e-08,3827.1,3827.0,11.79836219]
[1754589100970,1e-08,3827.1,3827.0,24.88118422]
[1754589101182,0.002,3827.9,3827.8,3.16246669]
[1754589101338,0.002,3827.9,3827.8,7.29286669]
[1754589101538,0.002,3827.9,3827.8,7.74816669]
[1754589101776,0.002,3827.9,3827.8,7.99206669]
[1754589101940,1e-08,3828.3,3828.2,3.16219372]
[1754589102136,1e-08,3828.3,3828.2,23.24501575]
[1754589102370,4.56237734,3829.6,3828.8,3.16178437]
[1754589102371,0.56237734,3829.5,3828.8,3.16178437]
[1754589102568,0.56237734,3829.6,3828.8,10.16178437]
[1754589102845,0.56237734,3829.6,3828.8,13.20273206]
[1754589103273,0.56437734,3829.7,3828.8,13.20273206]
[1754589103584,0.002,3829.7,3828.8,13.20273206]
[1754589105987,0.4728,3829.6,3828.8,13.20273206]
[1754589106587,0.9005,3829.6,3828.8,13.20273206]
[1754589108987,0.002,3829.7,3828.8,13.44663206]
[1754589109163,0.4748,3829.7,3828.8,13.20273206]
[1754589109791,0.9005,3829.5,3828.8,12.74743206]
[1754589110768,0.9005,3829.5,3828.8,13.20273206]
[1754589112004,0.9005,3829.5,3828.8,13.33313206]
[1754589112203,0.002,3829.7,3828.8,13.33313206]
[1754589112355,0.002,3829.7,3828.8,13.57703206]
[1754589112700,1e-08,3829.3,3829.2,6.16151154]
[1754589112855,1e-08,3829.3,3829.2,24.68081561]
[1754589113055,1e-08,3829.3,3829.2,25.26651561]
[1754589113789,1e-08,3829.3,3829.2,25.51041561]
[1754589114086,1e-08,3829.3,3829.2,25.39622967]
[1754589114281,1e-08,3829.3,3829.2,25.26651561]
[1754589114484,1e-08,3829.3,3829.2,24.81121561]
[1754589114998,1e-08,3829.3,3829.2,25.26651561]
[1754589116480,1e-08,3829.3,3829.2,25.46459387]
[1754589116781,1e-08,3829.3,3829.2,25.59524762]
[1754589121099,0.002,3830.1,3829.2,25.59524762]
[1754589121100,1e-08,3830.1,3830.0,6.16096605]
[1754589121297,1e-08,3830.1,3830.0,23.24078808]
[1754589121499,1e-08,3830.1,3830.0,23.87078808]
[1754589121800,1e-08,3830.1,3830.0,35.32668437]
[1754589122097,1e-08,3830.5,3830.4,2.6106934]
[1754589122315,1e-08,3830.5,3830.4,9.6076934]
[1754589122463,0.002,3831.3,3830.4,9.6076934]
[1754589122464,0.002,3831.3,3831.2,0.55]
[1754589122666,0.002,3831.3,3831.2,20.4403941]
[1754589122900,0.4624,3831.3,3831.2,20.5707941]
[1754589123073,0.919,3831.3,3831.2,20.5707941]
[1754589125273,0.919,3831.3,3831.2,7.28754825]
[1754589127014,0.919,3831.3,3831.2,7.28654825]
[1754589128410,0.919,3831.3,3831.2,6.73654825]
[1754589128703,0.919,3831.3,3831.2,2.74054825]
[1754589130219,0.4586,3831.3,3831.2,2.74054825]
[1754589130524,0.919,3831.3,3831.2,2.74054825]
[1754589133126,0.919,3831.3,3830.1,4.27]
[1754589133422,0.002,3831.3,3831.0,0.1304]
[1754589133807,0.002,3831.3,3831.2,2.61014825]
[1754589134415,0.919,3831.3,3831.2,2.61014825]
[1754589135926,0.919,3831.3,3831.2,2.74054825]
[1754589137526,0.919,3831.3,3831.1,2.6101983]
[1754589137828,1.72107723,3831.2,3830.5,3.995]
[1754589138130,1.16035122,3831.1,3831.0,2.61028149]
[1754589138503,0.4624,3831.3,3831.2,2.61014825]
[1754589138810,0.002,3831.3,3831.2,2.61014825]
[1754589139012,0.002,3831.3,3831.2,2.74054825]
[1754589139318,0.919,3831.3,3831.2,2.74054825]
[1754589139831,1.16245913,3831.3,3831.2,2.74054825]
[1754589139994,0.919,3831.3,3831.2,2.74054825]
[1754589140200,1.16246182,3831.3,3831.2,2.74054825]
[1754589140722,1.723771,3831.3,3831.2,0.1304]
[1754589141033,1.723771,3831.3,3831.2,2.74054825]
[1754589141263,1.723771,3831.3,3830.7,3.995]
[1754589141264,1.723771,3831.3,3830.8,2.61040666]
[1754589141429,1.16053652,3831.2,3831.1,2.61017336]
[1754589142202,0.917,3831.2,3831.1,2.61017336]
[1754589142434,1.16070926,3831.2,3831.1,2.61017336]
[1754589142932,0.002,3831.3,3831.2,2.61014825]
[1754589143239,0.24574313,3831.3,3831.2,2.61014825]
[1754589143816,0.24575982,3831.3,3831.2,2.74054825]
[1754589144016,1.16275982,3831.3,3831.2,2.74054825]
[1754589146256,1.16291368,3831.3,3831.2,0.1304]
[1754589146434,1.72518243,3831.3,3831.0,0.001]
[1754589146604,1.72318243,3831.2,3831.0,0.001]
[1754589146803,0.80621721,3831.1,3831.0,2.61126934]
[1754589147004,1.72321721,3831.1,3831.0,2.61126934]
[1754589147240,1.72321721,3831.1,3831.0,0.001]
[1754589147398,1.89900153,3831.1,3831.0,0.001]
[1754589147604,1.89900153,3831.1,3831.0,2.61128452]
[1754589147802,16.39900153,3831.1,3831.0,2.61128452]
[1754589148442,1.72321721,3831.1,3831.0,2.61128452]
[1754589149141,1.72356687,3831.1,3831.0,2.61128452]
[1754589150041,1.47930353,3831.1,3831.0,2.61128452]
[1754589150235,1.72373218,3831.1,3831.0,2.61128452]
[1754589151217,1.72373218,3831.1,3831.0,0.001]
[1754589151416,3.3463054,3831.1,3831.0,0.001]
[1754589152854,1.72373218,3831.1,3831.0,2.61128452]
[1754589153026,0.70482865,3831.1,3831.0,2.61128452]
[1754589153227,1.15742865,3831.1,3831.0,2.61128452]
[1754589154056,1.72063346,3831.1,3831.0,0.001]
[1754589154457,4.49386275,3831.1,3831.0,0.001]
[1754589154660,2.61050536,3830.7,3830.3,0.001]
[1754589154833,0.1304,3830.4,3830.3,0.001]
[1754589155236,1.0432,3830.4,3830.3,0.001]
[1754589155557,5.0372,3830.4,3830.3,0.001]
[1754589157849,5.0372,3830.4,3830.3,2.61176155]
[1754589158036,0.71059999,3831.1,3830.3,0.001]
[1754589158241,1.0432,3830.8,3830.3,0.001]
[1754589158564,0.9128,3830.7,3830.3,0.001]
[1754589158865,0.1304,3830.8,3830.3,0.001]
[1754589158866,1.0432,3830.8,3830.3,2.61175841]
[1754589159050,0.9128,3830.7,3830.3,0.001]
[1754589159588,0.1304,3830.8,3830.3,0.551]
[1754589159745,3.995,3831.0,3830.8,2.61037346]
[1754589159934,0.24426824,3830.9,3830.8,2.61037346]
[1754589160756,1.15706824,3830.9,3830.8,2.61037346]
[1754589161750,0.24426824,3830.9,3830.8,2.61037346]
[1754589162249,0.24426824,3830.9,3830.8,2.74077346]
[1754589163575,0.24426824,3830.9,3830.8,3.23777346]
[1754589164478,0.24426824,3830.9,3830.8,2.74077346]
[1754589164847,1.15706824,3830.9,3830.4,2.6106934]
[1754589165054,1.15706824,3830.9,3830.3,0.001]
[1754589165055,5.15206824,3830.8,3830.3,0.001]
[1754589165255,5.15206824,3830.8,3830.3,2.61171566]
[1754589165256,0.24426824,3830.7,3830.3,2.61171566]
[1754589165466,1.15706824,3830.6,3830.3,0.001]
[1754589165661,0.9128,3830.6,3830.3,2.6117135]
[1754589165866,0.9128,3830.5,3830.3,2.6117135]
[1754589166171,14.5,3830.7,3830.3,2.6117135]
[1754589166378,0.9128,3830.4,3830.3,2.6117135]
[1754589166872,0.9128,3830.4,3830.3,0.001]
[1754589167276,6.46112,3830.4,3830.3,0.001]
[1754589167463,6.83573374,3830.4,3830.3,0.001]
[1754589168177,7.3986486,3830.4,3830.3,0.001]
[1754589168382,6.83573374,3830.4,3830.3,0.001]
[1754589169147,10.00914304,3830.4,3830.3,0.001]
[1754589169778,10.00907444,3830.4,3830.3,0.001]
[1754589169954,7.39838104,3830.4,3830.3,0.001]
[1754589170786,10.00907444,3830.4,3830.3,0.001]
[1754589171871,21.89838104,3830.4,3830.3,0.001]
[1754589172862,21.89823487,3830.4,3830.3,0.001]
[1754589173947,21.33551897,3830.4,3830.3,0.001]
[1754589174682,18.86839897,3830.4,3830.3,0.001]
[1754589175456,18.86839897,3830.4,3830.3,2.61176155]
[1754589175457,4.23799897,3830.4,3830.3,2.61176155]
[1754589175652,4.23799897,3830.4,3830.3,0.001]
[1754589175879,3.994,3830.4,3830.3,0.001]
[1754589176079,4.23798768,3830.4,3830.3,0.001]
[1754589176287,5.15078768,3830.4,3830.3,0.001]
[1754589176478,5.18342134,3830.4,3830.3,0.001]
[1754589176685,5.15078768,3830.4,3830.3,0.001]
[1754589176856,19.68342134,3830.4,3830.3,0.001]
[1754589177058,19.65078768,3830.4,3830.3,0.001]
[1754589178997,19.65086785,3830.4,3830.3,0.001]
[1754589179960,18.73806785,3830.4,3830.3,0.001]
[1754589180197,19.19586785,3830.4,3830.3,0.001]
[1754589180371,19.64756785,3830.4,3830.3,0.001]
[1754589180580,19.18976785,3830.4,3830.3,0.001]
[1754589180789,4.36846785,3830.4,3830.3,0.001]
[1754589181167,4.1244,3830.4,3830.3,0.001]
[1754589181484,4.36848939,3830.4,3830.3,0.001]
[1754589182402,5.27798939,3830.4,3830.3,0.001]
[1754589184009,5.0339,3830.4,3830.3,0.001]
[1754589184173,5.27812937,3830.4,3830.3,0.001]
[1754589185207,4.36862937,3830.4,3830.3,0.001]
[1754589185766,3.0,3831.2,3830.3,0.001]
[1754589185970,0.1304,3830.7,3830.6,2.61049175]
[1754589186173,4.36865755,3830.7,3830.3,0.4984]
[1754589186475,3.994,3830.7,3830.6,2.61055709]
[1754589186684,4.23826108,3830.7,3830.6,2.61055709]
[1754589187185,4.23826108,3830.7,3830.6,3.10795709]
[1754589187775,3.994,3830.7,3830.6,3.10795709]
[1754589187971,3.994,3830.7,3830.6,3.65795709]
[1754589188176,3.994,3830.7,3830.6,3.78835709]
[1754589189205,4.23826805,3830.7,3830.6,3.78835709]
[1754589189393,3.994,3830.7,3830.6,4.42835656]
[1754589190196,3.994,3830.7,3830.6,3.38095656]
[1754589190613,3.994,3830.7,3830.6,2.74095709]
[1754589191321,3.994,3830.7,3830.6,2.61055709]
[1754589192107,3.994,3830.7,3830.5,2.61060374]
[1754589192276,4.9035,3830.7,3830.5,2.61060374]
[1754589192891,3.994,3830.7,3830.4,0.1304]
[1754589193077,0.9095,3830.6,3830.3,0.001]
[1754589193280,0.1304,3830.5,3830.3,0.001]
[1754589193480,3.993,3830.4,3830.3,0.001]
[1754589193704,5.05461708,3830.4,3830.3,0.001]
[1754589193904,4.1234,3830.4,3830.3,0.001]
[1754589194093,3.993,3830.4,3830.3,0.001]
[1754589194289,3.993,3830.4,3830.3,2.61176155]
[1754589194801,3.993,3830.4,3830.3,0.001]
[1754589195003,0.9095,3830.6,3830.3,2.61174909]
[1754589195187,3.993,3830.5,3830.4,2.6106934]
[1754589195818,0.1304,3830.7,3830.5,2.61060762]
[1754589196001,3.993,3830.6,3830.5,2.61060762]
[1754589198017,0.002,3831.0,3830.8,2.61042079]
[1754589198207,3.993,3830.9,3830.7,2.61046949]
[1754589198719,3.993,3830.9,3830.7,2.61046688]
[1754589199415,3.993,3830.9,3830.8,2.61042079]
[1754589199585,3.993,3830.9,3830.7,2.61047714]
[1754589200019,3.993,3830.9,3830.6,2.74093418]
[1754589200227,4.9025,3830.9,3830.7,2.61047958]
[1754589200719,3.993,3830.9,3830.8,2.61042079]
[1754589201092,3.993,3830.9,3830.7,2.61047057]
[1754589201485,3.993,3830.9,3830.8,2.61042079]
[1754589202226,3.993,3830.9,3830.6,0.1304]
[1754589202426,3.993,3830.9,3830.7,2.61044389]
[1754589203317,4.4508,3830.9,3830.7,2.61044389]
[1754589203512,4.9025,3830.9,3830.7,2.61044389]
[1754589203722,3.993,3830.9,3830.8,2.61042079]
[1754589205813,3.993,3830.9,3830.8,3.10782079]
[1754589206127,3.993,3830.9,3830.8,3.59615598]
[1754589207099,3.993,3830.9,3830.8,3.09875598]
[1754589207498,3.993,3830.9,3830.8,4.14615598]
[1754589208008,0.002,3831.0,3830.9,3.16035265]
[1754589208209,0.002,3831.0,3830.9,4.5884478]
[1754589208801,0.002,3831.0,3830.9,4.1215478]
[1754589209832,0.002,3831.0,3830.9,4.5884478]
[1754589210725,0.002,3831.0,3830.9,14.89375102]
[1754589211638,0.002,3831.0,3830.9,18.88575102]
[1754589211839,0.002,3831.0,3830.9,22.13065102]
[1754589212025,0.002,3831.0,3830.9,21.88575102]
[1754589212536,0.002,3831.0,3830.9,22.08225229]
[1754589213806,0.002,3831.0,3830.9,22.32715229]
[1754589215714,0.002,3831.0,3830.9,22.08225229]
[1754589220640,1e-08,3831.3,3831.2,3.16014825]
[1754589220815,1e-08,3831.3,3831.2,23.14033075]
[1754589221020,0.002,3832.0,3831.8,3.15973954]
[1754589221226,0.002,3832.0,3831.8,20.45604276]
[1754589221826,0.002,3832.0,3831.8,20.58644276]
[1754589222057,0.002,3832.0,3831.8,22.95275902]
[1754589222854,0.002,3832.0,3831.8,23.41965902]
[1754589223424,0.002,3832.0,3831.8,22.95275902]
[1754589224259,0.5007,3831.9,3831.8,18.96175902]
[1754589224431,0.9304,3831.9,3831.8,22.95175902]
[1754589225151,0.002,3831.9,3831.8,22.95175902]
[1754589225356,1e-08,3831.9,3831.8,22.95175902]
[1754589225559,1e-08,3831.9,3831.8,23.66355902]
[1754589226174,1e-08,3832.0,3831.9,6.15967144]
[1754589226325,1e-08,3832.1,3832.0,6.15960334]
[1754589226522,0.4297,3833.3,3833.2,2.60878639]
[1754589226720,0.9284,3833.3,3833.2,2.60878639]
[1754589227522,0.9284,3833.3,3833.1,2.73925141]
[1754589227723,0.03260727,3833.5,3833.1,2.73925141]
[1754589228056,0.9284,3833.2,3833.0,2.60886728]
[1754589228267,0.9284,3833.1,3833.0,2.60886728]
[1754589229853,0.9284,3833.1,3832.6,0.55]
[1754589230066,0.1304,3833.3,3833.1,2.60880339]
[1754589230365,0.1304,3833.3,3832.8,0.1304]
[1754589230366,0.1304,3833.3,3833.0,2.60890045]
[1754589230565,0.9284,3833.2,3833.0,2.60890045]
[1754589230763,0.4297,3833.1,3833.0,2.60890045]
[1754589231059,0.9284,3833.1,3833.0,2.60890045]
[1754589231265,0.9284,3833.1,3832.9,2.60898066]
[1754589231561,0.9284,3833.0,3832.8,2.60904596]
[1754589231761,0.1304,3833.3,3832.7,0.1304]
[1754589231966,0.9284,3832.9,3832.7,0.1304]
[1754589232148,0.9284,3832.9,3832.5,3.0]
[1754589232149,0.9284,3832.8,3832.3,3.989]
[1754589232469,0.1304,3833.0,3832.7,2.60912672]
[1754589232967,0.9284,3832.9,3832.6,2.60918725]
[1754589233176,0.9284,3832.8,3832.7,2.6091173]
[1754589234073,0.9284,3832.8,3832.6,2.60917839]
[1754589234273,0.1304,3833.0,3832.6,2.60917839]
[1754589234479,0.9284,3832.7,3832.6,2.60917839]
[1754589234631,0.9284,3832.7,3832.5,2.60924736]
[1754589234831,0.9284,3832.7,3832.4,0.1304]
[1754589234832,0.1304,3833.0,3832.6,2.6091948]
[1754589235057,1.62913885,3833.0,3832.6,2.6091948]
[1754589235480,0.9284,3832.9,3832.7,2.60911648]
[1754589235853,1.62913885,3833.0,3832.7,2.60911648]
[1754589236053,0.9284,3832.8,3832.7,2.60911648]
[1754589236270,0.9284,3832.8,3832.6,2.60917728]
[1754589236472,1.62913885,3833.0,3832.6,2.60917728]
[1754589236669,0.9284,3832.7,3832.6,2.60917728]
[1754589237584,0.9284,3832.9,3832.8,2.60901567]
[1754589239163,0.9284,3832.9,3832.7,2.60909961]
[1754589239484,0.9229,3832.8,3832.7,2.60909961]
[1754589239989,0.9229,3832.8,3832.6,2.73956702]
[1754589240165,0.1304,3833.1,3832.6,2.73959411]
[1754589240373,0.1304,3833.1,3832.8,2.60900877]
[1754589240584,0.1304,3833.1,3832.9,2.60898562]
[1754589240749,0.1304,3833.1,3832.6,2.73959411]
[1754589240750,0.9229,3833.0,3832.7,2.60912672]
[1754589240955,0.9229,3832.9,3832.8,2.60905865]
[1754589241215,0.9229,3832.9,3832.7,2.60908691]
[1754589241501,3.988,3833.0,3832.6,2.60914603]
[1754589241797,0.41184,3832.9,3832.4,0.1304]
[1754589242001,0.9229,3832.9,3832.6,2.60918341]
[1754589242490,0.9229,3832.8,3832.4,0.1304]
[1754589242787,0.9229,3832.8,3832.6,2.60918839]
[1754589242990,3.988,3833.0,3832.6,2.60918839]
[1754589243193,0.9229,3832.7,3832.6,2.60918839]
[1754589243379,0.9229,3832.7,3832.5,2.6092131]
[1754589243571,0.9229,3832.6,3832.5,2.6092131]
[1754589243891,0.9229,3832.6,3832.3,2.73977404]
[1754589243892,5.3262009,3833.0,3832.7,2.60908193]
[1754589244093,1.0533,3832.9,3832.7,2.60908193]
[1754589244392,1.0533,3832.9,3832.6,2.60916887]
[1754589244393,0.9229,3832.8,3832.6,2.60916887]
[1754589244593,0.1304,3832.9,3832.6,2.60916887]
[1754589244796,0.9229,3832.7,3832.6,2.60916887]
[1754589244996,0.9229,3832.7,3832.5,2.60925439]
[1754589245168,0.9229,3832.7,3832.3,0.1304]
[1754589245169,0.9229,3832.6,3832.3,0.1304]
[1754589245362,0.95551578,3832.5,3832.2,2.60941393]
[1754589245561,0.1304,3832.7,3832.2,2.60941393]
[1754589245792,0.9229,3832.4,3832.2,2.60941393]
[1754589246008,0.1304,3832.7,3832.1,0.1304]
[1754589246184,0.9229,3832.3,3832.2,2.60942428]
[1754589246365,0.9229,3832.3,3832.1,2.60953115]
[1754589246566,0.9229,3832.2,3832.1,2.60952788]
[1754589246883,0.9229,3832.2,3832.0,2.6095868]
[1754589247081,0.9229,3832.1,3831.8,0.1304]
[1754589247394,0.1304,3832.3,3831.8,0.1304]
[1754589247395,0.1304,3832.3,3831.8,2.74011173]
[1754589247759,0.1304,3832.3,3831.9,2.60966235]
[1754589247966,0.95551833,3832.2,3831.7,2.60976079]
[1754589248260,0.1304,3831.9,3831.4,0.001]
[1754589248685,3.988,3832.0,3831.8,2.60973954]
[1754589249000,0.9229,3831.9,3831.8,2.60973954]
[1754589250497,3.988,3832.0,3831.9,2.60967144]
[1754589250702,3.988,3832.0,3831.8,2.60973954]
[1754589250703,0.1304,3832.2,3832.0,2.60960334]
[1754589251214,0.1304,3832.2,3832.0,2.60956239]
[1754589251585,0.1304,3832.3,3831.9,2.60965885]
[1754589252119,0.5998,3832.3,3832.0,2.60960334]
[1754589252321,1.0533,3832.3,3832.0,2.60960334]
[1754589252626,0.4694,3832.2,3832.0,2.60960334]
[1754589252977,0.9229,3832.1,3831.9,2.60965272]
[1754589253408,0.4694,3832.0,3831.9,2.60965272]
[1754589253977,0.9229,3832.0,3831.9,2.60965272]
[1754589254335,0.5998,3832.3,3832.1,2.60952739]
[1754589254489,0.24423907,3832.2,3832.1,2.60952739]
[1754589254689,0.24423907,3832.2,3831.7,3.19049427]
[1754589254889,0.24423907,3832.1,3832.0,2.60959518]
[1754589255738,0.24418987,3832.1,3832.0,2.60959518]
[1754589255940,0.24418987,3832.1,3832.0,2.60960334]
[1754589256238,0.9229,3832.1,3831.9,2.60964423]
[1754589256785,0.9229,3832.1,3832.0,2.60960334]
[1754589257239,0.1304,3832.3,3832.0,2.60960334]
[1754589257532,0.1304,3832.3,3831.9,2.60967144]
[1754589257533,1.16702342,3832.2,3831.9,2.60967144]
[1754589257705,0.9229,3832.2,3831.9,2.60967144]
[1754589258637,0.1304,3832.3,3831.9,2.60967144]
[1754589258789,0.9229,3832.1,3831.8,2.61071335]
[1754589259129,0.9229,3832.0,3831.8,2.61071335]
[1754589259330,0.9229,3832.0,3831.8,0.001]
[1754589259537,0.9229,3831.9,3831.8,0.001]
[1754589260019,3.988,3832.0,3831.9,2.60967144]
[1754589260333,3.988,3832.3,3831.8,10.30376232]
[1754589260491,0.24410723,3832.2,3831.8,10.43416232]
[1754589260685,4.1184,3832.3,3832.1,2.60953524]
[1754589260892,0.71350469,3832.2,3831.9,2.60963092]
[1754589261087,0.9229,3832.1,3831.9,2.60963092]
[1754589262204,4.1184,3832.3,3831.8,0.1314]
[1754589262421,0.24413699,3832.2,3832.1,2.60947089]
[1754589262714,0.24413699,3832.2,3832.0,2.60957845]
[1754589262917,4.1184,3832.3,3832.0,2.60957845]
[1754589263120,0.24413711,3832.2,3832.1,2.60953524]
[1754589263519,0.1304,3832.3,3832.2,2.60946714]
[1754589263830,3.988,3832.6,3832.5,2.60926288]
[1754589264329,3.988,3832.6,3832.4,2.60930764]
[1754589264694,3.988,3832.6,3832.1,10.43316232]
[1754589264695,0.9229,3832.5,3832.3,2.60935545]
[1754589265251,0.9229,3832.4,3832.3,2.60935545]
[1754589265429,0.4535,3832.4,3832.3,2.60935545]
[1754589265731,0.4694,3832.5,3832.4,2.60933096]
[1754589266129,0.9229,3832.5,3832.4,2.60933096]
[1754589266432,1.16706972,3832.5,3832.4,2.60933096]
[1754589267097,1.16706972,3832.5,3832.1,2.73992289]
[1754589267098,1.16706972,3832.5,3832.3,2.60938693]
[1754589267437,0.9229,3832.5,3832.3,2.60938693]
[1754589267749,3.988,3832.6,3832.2,2.60944452]
[1754589268028,0.9229,3832.4,3832.2,2.60942401]
[1754589268417,0.9229,3832.4,3832.1,0.1304]
[1754589268592,0.8957,3832.3,3832.2,2.60944654]
[1754589268802,0.8957,3832.3,3831.8,0.001]
[1754589268803,5.37107,3832.3,3832.0,0.1304]
[1754589268996,0.1304,3832.0,3831.8,0.001]
[1754589269320,0.4281,3832.3,3832.0,2.60956584]
[1754589269491,0.4281,3832.3,3831.8,2.61073954]
[1754589269492,5.12697025,3832.2,3831.8,2.61072019]
[1754589269697,3.987,3832.1,3831.9,2.60965516]
[1754589269898,4.8827,3832.1,3831.9,2.60965516]
[1754589270198,0.24426813,3832.0,3831.9,2.60965516]
[1754589270398,2.87027721,3832.7,3832.4,2.60932494]
[1754589270399,0.4281,3832.7,3832.4,2.60932494]
[1754589270613,4.92435712,3832.6,3832.2,2.6094656]
[1754589270834,0.24425158,3832.5,3832.2,2.6094656]
[1754589271029,0.24425158,3832.4,3832.3,2.60939905]
[1754589271230,0.24425158,3832.4,3832.3,3.06749905]
[1754589271730,0.24425158,3832.4,3832.3,13.37026137]
[1754589271932,0.24425158,3832.4,3832.3,14.16516137]
[1754589272137,0.002,3832.8,3832.7,2.60912672]
[1754589272340,0.24627499,3832.8,3832.7,2.60912672]
[1754589272505,0.24627499,3832.8,3832.7,2.73952672]
[1754589273136,0.002,3832.8,3832.7,2.73952672]
[1754589273439,0.24629183,3832.8,3832.7,2.73952672]
[1754589273754,1.14196575,3832.8,3832.7,0.1304]
[1754589273898,1.14196575,3832.8,3832.5,2.6092192]
[1754589273899,1.78526232,3832.8,3832.5,2.6092192]
[1754589274106,1.13996575,3832.7,3832.5,2.6092192]
[1754589274333,0.8957,3832.6,3832.5,2.6092192]
[1754589275217,0.8957,3832.6,3832.3,0.1304]
[1754589275420,0.8957,3832.6,3831.8,0.001]
[1754589275421,0.8957,3832.5,3832.0,2.60954942]
[1754589275741,4.8827,3832.4,3831.8,0.001]
[1754589275936,4.8827,3832.4,3832.1,0.1304]
[1754589276139,0.1304,3832.2,3831.8,2.61071395]
[1754589276346,4.8827,3832.1,3831.8,0.001]
[1754589276843,0.8957,3832.0,3831.8,0.001]
[1754589277147,0.8957,3832.0,3831.9,0.001]
[1754589277328,1.05872004,3832.0,3831.9,0.001]
[1754589277500,1.56329204,3832.0,3831.9,0.001]
[1754589277702,1.530672,3832.0,3831.9,0.001]
[1754589278154,1.0261,3832.0,3831.9,0.001]
[1754589279011,3.987,3832.1,3831.9,2.61067144]
[1754589279253,4.1174,3832.1,3831.9,0.001]
[1754589279428,0.8957,3832.0,3831.9,0.001]
[1754589280253,0.8957,3832.0,3831.9,2.61067144]
[1754589280617,4.1174,3832.1,3832.0,2.60960334]
[1754589281124,3.987,3832.2,3832.1,2.60950969]
[1754589281314,4.1174,3832.2,3832.1,2.60950969]
[1754589282952,4.1174,3832.2,3831.9,2.61064936]
[1754589282953,5.25745649,3832.2,3831.9,2.61064936]
[1754589283148,0.8957,3832.1,3831.9,2.61064936]
[1754589283351,4.1174,3832.2,3832.0,2.60959527]
[1754589283555,4.1174,3832.2,3831.9,2.61064832]
[1754589284019,0.8957,3832.1,3831.9,2.61064832]
[1754589284220,0.8957,3832.1,3831.9,0.001]
[1754589284417,0.8957,3832.0,3831.9,0.001]
[1754589284617,1.14007441,3832.0,3831.9,0.001]
[1754589284939,1.27047779,3832.0,3831.9,0.001]
[1754589285255,15.77048251,3832.0,3831.9,0.001]
[1754589285557,16.33345868,3832.0,3831.9,0.001]
[1754589285729,18.09661702,3832.0,3831.9,0.001]
[1754589285933,20.70622036,3832.0,3831.9,0.001]
[1754589286354,18.09661702,3832.0,3831.9,0.001]
[1754589287153,22.08261702,3832.0,3831.9,0.001]
[1754589287645,24.69222036,3832.0,3831.9,0.001]
[1754589287820,22.08261702,3832.0,3831.9,0.001]
[1754589288743,24.69222036,3832.0,3831.9,0.001]
[1754589291258,24.6921045,3832.0,3831.9,0.001]
[1754589291454,24.44783785,3832.0,3831.9,0.001]
[1754589291659,24.69202217,3832.0,3831.9,0.001]
[1754589294157,22.08231992,3832.0,3831.9,0.001]
[1754589294758,19.42346158,3832.0,3831.9,0.001]
[1754589295837,18.86048541,3832.0,3831.9,0.001]
[1754589296034,19.75618541,3832.0,3831.9,0.001]
[1754589297359,19.28858541,3832.0,3831.9,0.001]
[1754589297528,18.86048541,3832.0,3831.9,0.001]
[1754589298469,18.86048541,3832.0,3831.9,3.08647144]
[1754589298642,4.36048541,3832.0,3831.9,0.4768]
[1754589298837,4.1164,3832.0,3831.9,3.65620622]